lending/lending_fUSD_20240112
["ID","MTS","AMOUNT","RATE_DAILY","PERIOD"]
[311336641,1705063947972,-444.43795284,0.00028072,2]
[311336642,1705063947983,-500.0,0.00028072,2]
[311336643,1705063947994,-443.98434106,0.00028072,2]
[311336644,1705063948005,-500.0,0.00028072,2]
[311336645,1705063948016,-203.14911171,0.00028072,2]
[311336646,1705063948026,-500.0,0.00028072,2]
[311336647,1705063948038,-500.0,0.00028072,2]
[311336648,1705063948050,-819.21,0.00028072,2]
[311336649,1705063948062,-625.04,0.00028072,2]
[311336650,1705063948073,-584.87,0.00028072,2]
[311336651,1705063948084,-526.38,0.00028072,2]
[311336652,1705063948095,-550.56,0.00028072,2]
[311336653,1705063948106,-560.39646109,0.00028072,2]
[311336654,1705063948117,-624.58,0.00028072,2]
[311336655,1705063948128,-534.74,0.00028072,2]
[311336656,1705063948139,-500.0,0.00028072,2]
[311336657,1705063948150,-745.45,0.00028072,2]
[311336658,1705063948161,-595.28,0.00028072,2]
[311336659,1705063948502,-526.79,0.00028072,2]
[311336660,1705063948525,-627.56,0.00028072,2]
[311336661,1705063948539,-503.09,0.00028072,2]
[311336662,1705063948551,-151.75,0.00028072,2]
[311336663,1705063948561,-604.12,0.00028072,2]
[311336664,1705063948571,-500.0,0.00028072,2]
[311336665,1705063948581,-807.85,0.00028072,2]
[311336666,1705063948591,-500.0,0.00028072,2]
[311336667,1705063948601,-547.95,0.00028072,2]
[311336668,1705063948611,-579.89,0.00028072,2]
[311336669,1705063948620,-548.75,0.00028072,2]
[311336670,1705063948630,-1230.23,0.00028072,2]
[311336671,1705063948640,-1043.35,0.00028072,2]
[311336672,1705063948649,-537.69,0.00028072,2]
[311336673,1705063948658,-251.59876786,0.00028072,2]
[311336674,1705063948668,-3508.3,0.00028072,2]
[311336675,1705063948677,-619.56,0.00028072,2]
[311336676,1705063948686,-939.84,0.00028072,2]
[311336677,1705063948695,-2401.03,0.00028072,5]
[311336678,1705063948704,-500.0,0.00028072,2]
[311336679,1705063948713,-505.5,0.00028072,2]
[311336680,1705063948722,-1105.06,0.00028072,2]
[311336681,1705063948732,-522.95,0.00028072,2]
[311336682,1705063948741,-1354.24,0.00028072,2]
[311336683,1705063948750,-1368.86,0.00028072,2]
[311336684,1705063948760,-375.17433481,0.00028072,2]
[311336685,1705063948769,-772.0,0.00028072,2]
[311336686,1705063948778,-705.07,0.00028072,2]
[311336687,1705063948787,-1064.54,0.00028072,2]
[311336688,1705063948797,-660.22,0.00028072,2]
[311336689,1705063948808,-917.47,0.00028072,2]
[311336690,1705063948818,-608.43,0.00028072,2]
[311336691,1705063948827,-1227.15,0.00028072,2]
[311336692,1705063948838,-500.0,0.00028072,2]
[311336693,1705063948848,-873.32,0.00028072,2]
[311336694,1705063948857,-3542.34,0.00028072,2]
[311336695,1705063948866,-2030.8,0.00028072,2]
[311336696,1705063948876,-804.67,0.00028072,2]
[311336697,1705063948885,-500.0,0.00028072,2]
[311336698,1705063948894,-751.35,0.00028072,2]
[311336699,1705063948903,-681.41,0.00028072,2]
[311336700,1705063948912,-550.77,0.00028072,2]
[311336701,1705063948921,-568.41,0.00028072,2]
[311336702,1705063948931,-1040.93,0.00028072,2]
[311336703,1705063948940,-837.58,0.00028072,2]
[311336704,1705063948949,-1259.47,0.00028072,2]
[311336705,1705063948958,-645.64,0.00028072,2]
[311336706,1705063948967,-500.0,0.00028072,2]
[311336707,1705063948976,-528.46,0.00028072,2]
[311336708,1705063948985,-843.77,0.00028072,2]
[311336709,1705063948994,-500.0,0.00028072,2]
[311336710,1705063949003,-500.0,0.00028072,2]
[311336711,1705063949011,-500.0,0.00028072,2]
[311336712,1705063949020,-521.61,0.00028072,2]
[311336713,1705063949029,-271.78234175,0.00028072,2]
[311336714,1705063949038,-625.33,0.00028072,2]
[311336715,1705063949047,-1634.05,0.00028072,2]
[311336716,1705063949057,-709.97,0.00028072,2]
[311336717,1705063949066,-835.12,0.00028072,2]
[311336718,1705063949075,-1018.72,0.00028072,2]
[311336719,1705063949084,-1257.65,0.00028072,2]
[311336720,1705063949092,-1312.63,0.00028072,2]
[311336721,1705063949099,-511.76,0.00028072,2]
[311336722,1705063949110,-500.0,0.00028072,2]
[311336723,1705063949119,-1320.71,0.00028072,2]
[311336724,1705063949128,-539.08,0.00028072,2]
[311336725,1705063949134,-736.76,0.00028072,2]
[311336726,1705063949143,-969.0,0.00028072,2]
[311336727,1705063949152,-1026.07,0.00028072,2]
[311336728,1705063949162,-913.29,0.00028072,2]
[311336729,1705063949172,-721.94,0.00028072,2]
[311336730,1705063949181,-4569.8908539,0.00028126,2]
[311336731,1705063949191,-945.0,0.00028132,2]
[311336732,1705063949200,-1851.0,0.00028132,2]
[311336733,1705063949210,-835.0,0.00028132,2]
[311336734,1705063949220,-1252.0,0.00028132,2]
[311336735,1705063949229,-1234.0,0.00028132,2]
[311336736,1705063949239,-1931.0,0.00028132,2]
[311336737,1705063949248,-1138.0,0.00028132,2]
[311336738,1705063949258,-879.0,0.00028132,2]
[311336739,1705063949268,-507.0,0.00028132,2]
[311336740,1705063949277,-318.0,0.00028132,2]
[311336741,1705063949286,-2901.0,0.00028132,2]
[311336742,1705063949295,-2270.0,0.00028132,2]
[311336743,1705063949307,-19678.0,0.00028132,2]
[311336744,1705063949316,-2396.015,0.00028132,2]
[311336745,1705063949326,-150.0,0.00028132,2]
[311336746,1705063949336,-1028.0,0.00028132,2]
[311336747,1705063949346,-150.0,0.00028132,2]
[311336748,1705063949355,-150.0,0.00028132,2]
[311336749,1705063949365,-150.0,0.00028132,2]
[311336750,1705063949375,-434.34,0.00028189,2]
[311336751,1705063949386,-1438.92,0.00028219,2]
[311336752,1705063949396,-1438.92,0.00028219,2]
[311336753,1705063949406,-1438.92,0.00028219,2]
[311336754,1705063949416,-1438.92,0.00028219,2]
[311336755,1705063949427,-1438.92,0.00028219,2]
[311336756,1705063949436,-1438.92,0.00028219,2]
[311336757,1705063949447,-1438.92,0.00028219,2]
[311336758,1705063949456,-1438.92,0.00028219,2]
[311336759,1705063949466,-1438.92,0.00028219,2]
[311336760,1705063949475,-1438.92,0.00028219,2]
[311336761,1705063949485,-1438.92,0.00028219,2]
[311336762,1705063949495,-1438.92,0.00028219,2]
[311336763,1705063949505,-1438.92,0.00028219,2]
[311336764,1705063949515,-1438.92,0.00028219,2]
[311336765,1705063949524,-1438.92,0.00028219,2]
[311336766,1705063949535,-1438.92,0.00028219,2]
[311336767,1705063949544,-1438.92,0.00028219,2]
[311336768,1705063949554,-1438.92,0.00028219,2]
[311336769,1705063949564,-1438.92,0.00028219,2]
[311336770,1705063949578,-1438.92,0.00028219,2]
[311336771,1705063949589,-1438.92,0.00028219,2]
[311336772,1705063949600,-4223.75,0.00028278,2]
[311336773,1705063949610,-1122.89,0.00028278,2]
[311336774,1705063949621,-945.58,0.00028278,2]
[311336775,1705063949632,-620.52,0.00028278,2]
[311336776,1705063949642,-703.0,0.00028278,2]
[311336777,1705063949652,-1331.16,0.00028278,2]
[311336778,1705063949662,-3318.66,0.00028278,2]
[311336779,1705063949672,-500.0,0.000283,2]
[311336780,1705063949682,-322.3974793,0.0002831,2]
[311336781,1705063949693,-1074.41,0.00028345,2]
[311336782,1705063949703,-4313.59,0.00028345,5]
[311336783,1705063949713,-2141.96,0.00028345,2]
[311336784,1705063949722,-763.76,0.00028345,2]
[311336785,1705063949732,-13400.37,0.00028345,2]
[311336786,1705063949742,-4452.05,0.00028345,2]
[311336787,1705063949752,-500.0,0.00028345,2]
[311336788,1705063949763,-5995.38,0.00028345,2]
[311336789,1705063949773,-966.26,0.00028345,2]
[311336790,1705063949783,-660.56,0.00028345,2]
[311336791,1705063949793,-568.04,0.00028345,2]
[311336792,1705063949803,-1008.99,0.00028345,2]
[311336793,1705063949814,-615.37,0.00028345,2]
[311336794,1705063949824,-797.96,0.00028345,2]
[311336795,1705063949835,-1371.29,0.00028345,2]
[311336796,1705063949848,-686.32,0.00028345,2]
[311336797,1705063949858,-3981.87,0.00028345,2]
[311336798,1705063949868,-584.53,0.00028345,2]
[311336799,1705063949877,-610.53,0.00028345,2]
[311336800,1705063949886,-766.02,0.00028345,2]
[311336801,1705063949896,-621.74,0.00028345,2]
[311336802,1705063949906,-2752.63,0.00028345,2]
[311336803,1705063949915,-1378.37,0.00028345,2]
[311336804,1705063949925,-922.86,0.00028345,2]
[311336805,1705063949935,-712.79,0.00028345,2]
[311336806,1705063949945,-624.87,0.00028345,2]
[311336807,1705063949954,-213.28905788,0.00028345,2]
[311336808,1705063949964,-6331.44,0.00028345,2]
[311336809,1705063949974,-995.86,0.00028345,2]
[311336810,1705063949982,-652.82,0.00028345,2]
[311336811,1705063949992,-6343.23,0.00028345,2]
[311336812,1705063950002,-1936.38,0.00028345,2]
[311336813,1705063950012,-538.63,0.00028345,2]
[311336814,1705063950022,-530.12,0.00028345,2]
[311336815,1705063950031,-905.93,0.00028345,2]
[311336816,1705063950041,-439.47051384,0.00028345,2]
[311336817,1705063950051,-1330.98,0.00028345,2]
[311336818,1705063950061,-584.23,0.00028345,2]
[311336819,1705063950071,-1834.87,0.00028345,2]
[311336820,1705063950082,-2275.08,0.00028345,2]
[311336821,1705063950091,-3572.07,0.00028345,2]
[311336822,1705063950100,-558.34,0.00028345,2]
[311336823,1705063950110,-1688.4,0.00028345,2]
[311336824,1705063950119,-1346.26,0.00028345,2]
[311336825,1705063950129,-1004.34,0.00028345,2]
[311336826,1705063950138,-598.68,0.00028345,2]
[311336827,1705063950148,-929.29,0.00028345,2]
[311336828,1705063950158,-1187.5,0.00028345,2]
[311336829,1705063950168,-937.32,0.00028345,2]
[311336830,1705063950177,-507.51,0.00028345,2]
[311336831,1705063950187,-753.23,0.00028345,2]
[311336832,1705063950197,-522.02,0.00028346,2]
[311336833,1705063950210,-2353.43,0.00028346,2]
[311336834,1705063950224,-762.84,0.00028346,2]
[311336835,1705063950233,-759.51,0.00028346,2]
[311336836,1705063950243,-306.99027295,0.00028346,2]
[311336837,1705063950253,-538.07,0.00028346,2]
[311336838,1705063950264,-654.77,0.00028346,2]
[311336839,1705063950274,-266.89328949,0.00028346,2]
[311336840,1705063950286,-172.01775648,0.00028346,2]
[311336841,1705063950297,-2642.46,0.00028346,2]
[311336842,1705063950308,-535.86,0.00028346,2]
[311336843,1705063950318,-950.9,0.00028346,2]
[311336844,1705063950329,-536.71,0.00028346,2]
[311336845,1705063950339,-342.23492212,0.00028346,2]
[311336846,1705063950349,-693.32,0.00028346,2]
[311336847,1705063950360,-568.04,0.00028346,2]
[311336848,1705063950370,-500.0,0.00028346,2]
[311336849,1705063950381,-603.25,0.00028346,2]
[311336850,1705063950392,-500.0,0.00028346,2]
[311336851,1705063950402,-500.0,0.00028346,2]
[311336852,1705063950411,-362.03217795,0.00028346,2]
[311336853,1705063950422,-333.54658892,0.00028346,2]
[311336854,1705063950431,-819.21,0.00028346,2]
[311336855,1705063950442,-625.04,0.00028346,2]
[311336856,1705063950452,-584.87,0.00028346,2]
[311336857,1705063950462,-526.38,0.00028346,2]
[311336858,1705063950473,-550.56,0.00028346,2]
[311336859,1705063950483,-624.58,0.00028346,2]
[311336860,1705063950493,-534.74,0.00028346,2]
[311336861,1705063950503,-575.19869668,0.00028346,2]
[311336862,1705063950514,-745.45,0.00028346,2]
[311336863,1705063950525,-595.28,0.00028346,2]
[311336864,1705063950534,-526.79,0.00028346,2]
[311336865,1705063950545,-627.56,0.00028346,2]
[311336866,1705063950557,-503.09,0.00028346,2]
[311336867,1705063950567,-151.75,0.00028346,2]
[311336868,1705063950578,-604.12,0.00028346,2]
[311336869,1705063950588,-196.87,0.00028346,2]
[311336870,1705063950598,-807.85,0.00028346,2]
[311336871,1705063950608,-214.81068538,0.00028346,2]
[311336872,1705063950619,-547.95,0.00028346,2]
[311336873,1705063950629,-579.89,0.00028346,2]
[311336874,1705063950639,-548.75,0.00028346,2]
[311336875,1705063950649,-1230.23,0.00028346,2]
[311336876,1705063950659,-1043.35,0.00028346,2]
[311336877,1705063950669,-537.69,0.00028346,2]
[311336878,1705063950679,-3508.3,0.00028346,2]
[311336879,1705063950689,-619.56,0.00028346,2]
[311336880,1705063950698,-939.84,0.00028346,2]
[311336881,1705063950707,-2401.03,0.00028346,5]
[311336882,1705063950717,-500.0,0.00028346,2]
[311336883,1705063950726,-505.5,0.00028346,2]
[311336884,1705063950736,-1105.06,0.00028346,2]
[311336885,1705063950745,-522.95,0.00028346,2]
[311336886,1705063950755,-1354.24,0.00028346,2]
[311336887,1705063950766,-1438.92,0.00028346,2]
[311336888,1705063950775,-1368.86,0.00028346,2]
[311336889,1705063950784,-772.0,0.00028346,2]
[311336890,1705063950794,-705.07,0.00028346,2]
[311336891,1705063950805,-1064.54,0.00028346,2]
[311336892,1705063950815,-660.22,0.00028346,2]
[311336893,1705063950824,-917.47,0.00028346,2]
[311336894,1705063950834,-608.43,0.00028346,2]
[311336895,1705063950844,-1227.15,0.00028346,2]
[311336896,1705063950853,-500.0,0.00028346,2]
[311336897,1705063950862,-873.32,0.00028346,2]
[311336898,1705063950872,-3542.34,0.00028346,2]
[311336899,1705063950882,-2030.8,0.00028346,2]
[311336900,1705063950891,-804.67,0.00028346,2]
[311336901,1705063950900,-500.0,0.00028346,2]
[311336902,1705063950911,-751.35,0.00028346,2]
[311336903,1705063950920,-681.41,0.00028346,2]
[311336904,1705063950930,-550.77,0.00028346,2]
[311336905,1705063950939,-568.41,0.00028346,2]
[311336906,1705063950949,-1040.93,0.00028346,2]
[311336907,1705063950958,-837.58,0.00028346,2]
[311336908,1705063950967,-1259.47,0.00028346,2]
[311336909,1705063950977,-645.64,0.00028346,2]
[311336910,1705063950986,-500.0,0.00028346,2]
[311336911,1705063950996,-528.46,0.00028346,2]
[311336912,1705063951006,-843.77,0.00028346,2]
[311336913,1705063951016,-586.79828825,0.00028346,2]
[311336914,1705063951025,-500.0,0.00028346,2]
[311336915,1705063951034,-500.0,0.00028346,2]
[311336916,1705063951044,-521.61,0.00028346,2]
[311336917,1705063951055,-625.33,0.00028346,2]
[311336918,1705063951065,-1634.05,0.00028346,2]
[311336919,1705063951075,-709.97,0.00028346,2]
[311336920,1705063951084,-835.12,0.00028346,2]
[311336921,1705063951094,-1018.72,0.00028346,2]
[311336922,1705063951103,-1257.65,0.00028346,2]
[311336923,1705063951112,-1312.63,0.00028346,2]
[311336924,1705063951122,-511.76,0.00028346,2]
[311336925,1705063951131,-500.0,0.00028346,2]
[311336926,1705063951141,-1320.71,0.00028346,2]
[311336927,1705063951150,-539.08,0.00028346,2]
[311336928,1705063951160,-736.76,0.00028346,2]
[311336929,1705063951170,-969.0,0.00028346,2]
[311336930,1705063951179,-1026.07,0.00028346,2]
[311336931,1705063951190,-913.29,0.00028346,2]
[311336932,1705063951199,-721.94,0.00028346,2]
[311336933,1705063951388,-434.34,0.00028347,2]
[311336934,1705063951399,-200.0,0.00028377,2]
[311336935,1705063951409,-434.34,0.00028505,2]
[311336936,1705063951420,-4223.75,0.00028552,2]
[311336937,1705063951430,-1122.89,0.00028552,2]
[311336938,1705063951440,-945.58,0.00028552,2]
[311336939,1705063951450,-620.52,0.00028552,2]
[311336940,1705063951460,-703.0,0.00028552,2]
[311336941,1705063951470,-1331.16,0.00028552,2]
[311336942,1705063951479,-3318.66,0.00028552,2]
[311336943,1705063951489,-500.0,0.00028614,2]
[311336944,1705063951499,-1074.41,0.00028619,2]
[311336945,1705063951509,-4313.59,0.00028619,5]
[311336946,1705063951519,-2141.96,0.00028619,2]
[311336947,1705063951529,-763.76,0.00028619,2]
[311336948,1705063951539,-13400.37,0.00028619,2]
[311336949,1705063951549,-4452.05,0.00028619,2]
[311336950,1705063951560,-227.42303908,0.00028619,2]
[311336951,1705063951570,-5995.38,0.00028619,2]
[311336952,1705063951580,-966.26,0.00028619,2]
[311336953,1705063951590,-660.56,0.00028619,2]
[311336954,1705063951600,-568.04,0.00028619,2]
[311336955,1705063951610,-1008.99,0.00028619,2]
[311336956,1705063951620,-615.37,0.00028619,2]
[311336957,1705063951630,-797.96,0.00028619,2]
[311336958,1705063951640,-1371.29,0.00028619,2]
[311336959,1705063951649,-686.32,0.00028619,2]
[311336960,1705063951659,-3981.87,0.00028619,2]
[311336961,1705063951669,-584.53,0.00028619,2]
[311336962,1705063951678,-610.53,0.00028619,2]
[311336963,1705063951688,-766.02,0.00028619,2]
[311336964,1705063951697,-621.74,0.00028619,2]
[311336965,1705063951707,-2752.63,0.00028619,2]
[311336966,1705063951716,-1378.37,0.00028619,2]
[311336967,1705063951726,-922.86,0.00028619,2]
[311336968,1705063951735,-712.79,0.00028619,2]
[311336969,1705063951745,-624.87,0.00028619,2]
[311336970,1705063951754,-6331.44,0.00028619,2]
[311336971,1705063951764,-995.86,0.00028619,2]
[311336972,1705063951773,-6343.23,0.00028619,2]
[311336973,1705063951783,-652.82,0.00028619,2]
[311336974,1705063951792,-1936.38,0.00028619,2]
[311336975,1705063951802,-538.63,0.00028619,2]
[311336976,1705063951811,-530.12,0.00028619,2]
[311336977,1705063951821,-905.93,0.00028619,2]
[311336978,1705063951830,-1330.98,0.00028619,2]
[311336979,1705063951840,-584.23,0.00028619,2]
[311336980,1705063951850,-1834.87,0.00028619,2]
[311336981,1705063951860,-2275.08,0.00028619,2]
[311336982,1705063951869,-3572.07,0.00028619,2]
[311336983,1705063951879,-558.34,0.00028619,2]
[311336984,1705063951888,-1688.4,0.00028619,2]
[311336985,1705063951898,-1346.26,0.00028619,2]
[311336986,1705063951907,-1004.34,0.00028619,2]
[311336987,1705063951917,-598.68,0.00028619,2]
[311336988,1705063951926,-929.29,0.00028619,2]
[311336989,1705063951936,-1187.5,0.00028619,2]
[311336990,1705063951946,-937.32,0.00028619,2]
[311336991,1705063951956,-507.51,0.00028619,2]
[311336992,1705063951965,-753.23,0.00028619,2]
[311336993,1705063951975,-522.02,0.0002862,2]
[311336994,1705063951985,-2353.43,0.0002862,2]
[311336995,1705063951995,-762.84,0.0002862,2]
[311336996,1705063952005,-759.51,0.0002862,2]
[311336997,1705063952014,-538.07,0.0002862,2]
[311336998,1705063952024,-654.77,0.0002862,2]
[311336999,1705063952034,-2642.46,0.0002862,2]
[311337000,1705063952043,-535.86,0.0002862,2]
[311337001,1705063952052,-950.9,0.0002862,2]
[311337002,1705063952063,-536.71,0.0002862,2]
[311337003,1705063952072,-693.32,0.0002862,2]
[311337004,1705063952082,-568.04,0.0002862,2]
[311337005,1705063952092,-603.77723003,0.0002862,2]
[311337006,1705063952102,-603.25,0.0002862,2]
[311337007,1705063952111,-456.61281136,0.0002862,2]
[311337008,1705063952121,-460.19628613,0.0002862,2]
[311337009,1705063952130,-819.21,0.0002862,2]
[311337010,1705063952140,-625.04,0.0002862,2]
[311337011,1705063952150,-584.87,0.0002862,2]
[311337012,1705063952159,-526.38,0.0002862,2]
[311337013,1705063952168,-550.56,0.0002862,2]
[311337014,1705063952178,-624.58,0.0002862,2]
[311337015,1705063952188,-534.74,0.0002862,2]
[311337016,1705063952198,-745.45,0.0002862,2]
[311337017,1705063952211,-595.28,0.0002862,2]
[311337018,1705063952220,-526.79,0.0002862,2]
[311337019,1705063952230,-627.56,0.0002862,2]
[311337020,1705063952239,-503.09,0.0002862,2]
[311337021,1705063952250,-151.75,0.0002862,2]
[311337022,1705063952259,-604.12,0.0002862,2]
[311337023,1705063952269,-807.85,0.0002862,2]
[311337024,1705063952278,-547.95,0.0002862,2]
[311337025,1705063952289,-579.89,0.0002862,2]
[311337026,1705063952299,-548.75,0.0002862,2]
[311337027,1705063952310,-1230.23,0.0002862,2]
[311337028,1705063952319,-1043.35,0.0002862,2]
[311337029,1705063952330,-537.69,0.0002862,2]
[311337030,1705063952340,-3508.3,0.0002862,2]
[311337031,1705063952350,-619.56,0.0002862,2]
[311337032,1705063952360,-939.84,0.0002862,2]
[311337033,1705063952370,-2401.03,0.0002862,5]
[311337034,1705063952382,-454.43583262,0.0002862,2]
[311337035,1705063952392,-505.5,0.0002862,2]
[311337036,1705063952401,-1105.06,0.0002862,2]
[311337037,1705063952411,-522.95,0.0002862,2]
[311337038,1705063952420,-1354.24,0.0002862,2]
[311337039,1705063952430,-1438.92,0.0002862,2]
[311337040,1705063952440,-1368.86,0.0002862,2]
[311337041,1705063952449,-772.0,0.0002862,2]
[311337042,1705063952458,-705.07,0.0002862,2]
[311337043,1705063952468,-1064.54,0.0002862,2]
[311337044,1705063952478,-660.22,0.0002862,2]
[311337045,1705063952487,-917.47,0.0002862,2]
[311337046,1705063952497,-608.43,0.0002862,2]
[311337047,1705063952506,-1227.15,0.0002862,2]
[311337048,1705063952516,-495.1497445,0.0002862,2]
[311337049,1705063952526,-873.32,0.0002862,2]
[311337050,1705063952536,-3542.34,0.0002862,2]
[311337051,1705063952546,-2030.8,0.0002862,2]
[311337052,1705063952556,-804.67,0.0002862,2]
[311337053,1705063952566,-500.0,0.0002862,2]
[311337054,1705063952576,-751.35,0.0002862,2]
[311337055,1705063952585,-681.41,0.0002862,2]
[311337056,1705063952595,-550.77,0.0002862,2]
[311337057,1705063952605,-568.41,0.0002862,2]
[311337058,1705063952614,-1040.93,0.0002862,2]
[311337059,1705063952624,-837.58,0.0002862,2]
[311337060,1705063952634,-1259.47,0.0002862,2]
[311337061,1705063952643,-500.0,0.0002862,2]
[311337062,1705063952653,-645.64,0.0002862,2]
[311337063,1705063952662,-528.46,0.0002862,2]
[311337064,1705063952672,-843.77,0.0002862,2]
[311337065,1705063952681,-500.0,0.0002862,2]
[311337066,1705063952690,-181.99995084,0.0002862,2]
[311337067,1705063952699,-521.61,0.0002862,2]
[311337068,1705063952709,-625.33,0.0002862,2]
[311337069,1705063952718,-1634.05,0.0002862,2]
[311337070,1705063952728,-709.97,0.0002862,2]
[311337071,1705063952737,-835.12,0.0002862,2]
[311337072,1705063952747,-1018.72,0.0002862,2]
[311337073,1705063952756,-1257.65,0.0002862,2]
[311337074,1705063952765,-1312.63,0.0002862,2]
[311337075,1705063952775,-511.76,0.0002862,2]
[311337076,1705063952785,-189.58904266,0.0002862,2]
[311337077,1705063952795,-1320.71,0.0002862,2]
[311337078,1705063952805,-539.08,0.0002862,2]
[311337079,1705063952817,-736.76,0.0002862,2]
[311337080,1705063952827,-969.0,0.0002862,2]
[311337081,1705063952837,-1026.07,0.0002862,2]
[311337082,1705063952847,-913.29,0.0002862,2]
[311337083,1705063952856,-721.94,0.0002862,2]
[311337084,1705063952866,-542.9,0.00028627,2]
[311337085,1705063952875,-5533.6018685,0.00028652,2]
[311337086,1705063952885,-434.34,0.00028664,2]
[311337087,1705063952895,-412.77,0.00028758,2]
[311337088,1705063952905,-155.0,0.00028767,2]
[311337089,1705063952914,-500.0,0.00028772,2]
[311337090,1705063952924,-434.34,0.00028822,2]
[311337091,1705063952934,-4223.75,0.00028826,2]
[311337092,1705063952944,-1122.89,0.00028826,2]
[311337093,1705063952953,-945.58,0.00028826,2]
[311337094,1705063952963,-620.52,0.00028826,2]
[311337095,1705063952973,-703.0,0.00028826,2]
[311337096,1705063952982,-1331.16,0.00028826,2]
[311337097,1705063952992,-3318.66,0.00028826,2]
[311337098,1705063953002,-4569.8908539,0.00028852,2]
[311337099,1705063953012,-351.29,0.0002887,2]
[311337100,1705063953021,-9523.0438445,0.00028873,2]
[311337101,1705063953031,-1343.3465273,0.00028873,2]
[311337102,1705063953040,-150.0,0.00028892,2]
[311337103,1705063953050,-522.12249485,0.00028893,2]
[311337104,1705063953059,-2353.6500014,0.00028893,2]
[311337105,1705063953068,-762.84541756,0.00028893,2]
[311337106,1705063953077,-759.6915213,0.00028893,2]
[311337107,1705063953087,-538.10911553,0.00028893,2]
[311337108,1705063953097,-654.78,0.00028893,2]
[311337109,1705063953106,-2642.62181196,0.00028893,2]
[311337110,1705063953116,-536.05047719,0.00028893,2]
[311337111,1705063953125,-951.02002016,0.00028893,2]
[311337112,1705063953135,-536.79631197,0.00028893,2]
[311337113,1705063953144,-693.48186554,0.00028893,2]
[311337114,1705063953153,-568.25718851,0.00028893,2]
[311337115,1705063953163,-603.41585209,0.00028893,2]
[311337116,1705063953173,-819.38822077,0.00028893,2]
[311337117,1705063953182,-625.05917371,0.00028893,2]
[311337118,1705063953191,-584.88192399,0.00028893,2]
[311337119,1705063953201,-526.53030708,0.00028893,2]
[311337120,1705063953210,-550.66855338,0.00028893,2]
[311337121,1705063953220,-624.68244827,0.00028893,2]
[311337122,1705063953230,-534.84,0.00028893,2]
[311337123,1705063953239,-745.52408576,0.00028893,2]
[311337124,1705063953249,-595.28109016,0.00028893,2]
[311337125,1705063953259,-526.93927465,0.00028893,2]
[311337126,1705063953268,-627.73211795,0.00028893,2]
[311337127,1705063953278,-503.18500817,0.00028893,2]
[311337128,1705063953287,-151.86813752,0.00028893,2]
[311337129,1705063953297,-604.3,0.00028893,2]
[311337130,1705063953308,-807.96967885,0.00028893,2]
[311337131,1705063953318,-548.03841884,0.00028893,2]
[311337132,1705063953328,-580.11789673,0.00028893,2]
[311337133,1705063953338,-548.90225616,0.00028893,2]
[311337134,1705063953347,-1230.30692993,0.00028893,2]
[311337135,1705063953357,-1043.47017711,0.00028893,2]
[311337136,1705063953366,-537.78142247,0.00028893,2]
[311337137,1705063953376,-1074.59908112,0.00028893,2]
[311337138,1705063953385,-3508.30008736,0.00028893,2]
[311337139,1705063953396,-619.60970482,0.00028893,2]
[311337140,1705063953406,-4313.79962865,0.00028893,5]